[Event "Titled Tuesday Blitz September 21 2021"]
[White "Rodchenkov, Vitaly"]
[Black "Dronavalli, Harika"]
[WhiteFideId "4152964"]
[BlackFideId "5015197"]
[WhiteElo "2337"]
[BlackElo "2422"]
[Result "1-0"]
[Round "07"]
[TimeControl "180+1"]
[Date "2021.09.21"]
[WhiteClock "0:01:49"]
[BlackClock "0:01:01"]

1. Nf3 {[%clk 0:03:00]}  Nf6 {[%clk 0:02:57]} 2. c4 {[%clk 0:03:00]}  g6 {[%clk 0:02:57]} 3. b4 {[%clk 0:03:00]}  Bg7 {[%clk 0:02:57]} 4. Bb2 {[%clk 0:03:00]}  O-O {[%clk 0:02:57]} 5. g3 {[%clk 0:03:00]}  b6 {[%clk 0:02:56]} 6. Bg2 {[%clk 0:03:00]}  Bb7 {[%clk 0:02:57]} 7. O-O {[%clk 0:03:00]}  c5 {[%clk 0:02:57]} 8. b5 {[%clk 0:03:00]}  d5 {[%clk 0:02:57]} 9. cxd5 {[%clk 0:02:59]}  Bxd5 {[%clk 0:02:56]} 10. Nc3 {[%clk 0:02:58]}  Bb7 {[%clk 0:02:56]} 11. a4 {[%clk 0:02:59]}  Nbd7 {[%clk 0:02:56]} 12. a5 {[%clk 0:02:59]}  Rb8 {[%clk 0:02:48]} 13. axb6 {[%clk 0:02:57]}  axb6 {[%clk 0:02:48]} 14. Ra7 {[%clk 0:02:55]}  Qc8 {[%clk 0:02:43]} 15. Qa4 {[%clk 0:02:52]}  Ra8 {[%clk 0:02:27]} 16. Ra1 {[%clk 0:02:49]}  Rxa7 {[%clk 0:02:27]} 17. Qxa7 {[%clk 0:02:50]}  Ne4 {[%clk 0:01:26]} 18. h4 {[%clk 0:02:23]}  Nxc3 {[%clk 0:01:07]} 19. Bxc3 {[%clk 0:02:22]}  Qb8 {[%clk 0:01:01]} 20. Ng5 {[%clk 0:01:49]} 1-0


[Site "https://www.chess.com"]

[Event "Titled Tuesday Blitz September 21 2021"]
[White "Rozhkov, Viacheslav"]
[Black "Bilan, Danila"]
[WhiteFideId "4181484"]
[BlackFideId "24161918"]
[WhiteElo "2324"]
[BlackElo "2164"]
[Result "1-0"]
[Round "07"]
[TimeControl "180+1"]
[Date "2021.09.21"]
[WhiteClock "0:00:01"]
[BlackClock "0:00:55"]

1. e4 {[%clk 0:02:19]}  c6 {[%clk 0:02:58]} 2. d4 {[%clk 0:02:19]}  d5 {[%clk 0:02:59]} 3. e5 {[%clk 0:02:19]}  c5 {[%clk 0:02:59]} 4. dxc5 {[%clk 0:02:19]}  Nc6 {[%clk 0:03:00]} 5. Bb5 {[%clk 0:02:19]}  e6 {[%clk 0:02:57]} 6. Be3 {[%clk 0:02:17]}  Qc7 {[%clk 0:02:54]} 7. Nf3 {[%clk 0:02:15]}  Bd7 {[%clk 0:02:53]} 8. Bxc6 {[%clk 0:02:12]}  Qxc6 {[%clk 0:02:49]} 9. b4 {[%clk 0:02:05]}  a5 {[%clk 0:02:30]} 10. c3 {[%clk 0:02:01]}  axb4 {[%clk 0:02:16]} 11. cxb4 {[%clk 0:02:01]}  Qa6 {[%clk 0:02:15]} 12. Nc3 {[%clk 0:01:56]}  b6 {[%clk 0:01:56]} 13. b5 {[%clk 0:01:20]}  Qa3 {[%clk 0:01:38]} 14. c6 {[%clk 0:00:59]}  Bxc6 {[%clk 0:00:55]} 15. O-O {[%clk 0:00:01]} 1-0


[Site "https://www.chess.com"]

[Event "Titled Tuesday Blitz September 21 2021"]
[White "Rustemov, Alexander"]
[Black "Kucuksari, Kaan"]
[WhiteFideId "4119002"]
[BlackFideId "6380166"]
[WhiteElo "2749"]
[BlackElo "2301"]
[Result "1-0"]
[Round "07"]
[TimeControl "180+1"]
[Date "2021.09.21"]
[WhiteClock "0:02:08"]
[BlackClock "0:01:27"]

1. d4 {[%clk 0:03:00]}  Nf6 {[%clk 0:02:22]} 2. c4 {[%clk 0:02:59]}  g6 {[%clk 0:02:21]} 3. Nc3 {[%clk 0:02:58]}  Bg7 {[%clk 0:02:20]} 4. Nf3 {[%clk 0:02:58]}  d5 {[%clk 0:02:20]} 5. cxd5 {[%clk 0:02:54]}  Nxd5 {[%clk 0:02:21]} 6. g3 {[%clk 0:02:53]}  Nxc3 {[%clk 0:02:20]} 7. bxc3 {[%clk 0:02:52]}  c5 {[%clk 0:02:21]} 8. Bg2 {[%clk 0:02:51]}  Nc6 {[%clk 0:02:13]} 9. Be3 {[%clk 0:02:49]}  cxd4 {[%clk 0:02:12]} 10. Nxd4 {[%clk 0:02:50]}  O-O {[%clk 0:02:10]} 11. O-O {[%clk 0:02:49]}  Bd7 {[%clk 0:02:03]} 12. Rb1 {[%clk 0:02:47]}  Qc8 {[%clk 0:02:01]} 13. Qb3 {[%clk 0:02:41]}  Rb8 {[%clk 0:01:57]} 14. Nxc6 {[%clk 0:02:35]}  Bxc6 {[%clk 0:01:58]} 15. Bxa7 {[%clk 0:02:29]}  Ra8 {[%clk 0:01:58]} 16. Bd4 {[%clk 0:02:28]}  Bxg2 {[%clk 0:01:54]} 17. Kxg2 {[%clk 0:02:27]}  Qc6+ {[%clk 0:01:51]} 18. Kg1 {[%clk 0:02:25]}  e5 {[%clk 0:01:34]} 19. Be3 {[%clk 0:02:19]}  Rfc8 {[%clk 0:01:27]} 20. Rfc1 {[%clk 0:02:08]} 1-0


[Site "https://www.chess.com"]

[Event "Titled Tuesday Blitz September 21 2021"]
[White "Salinas Herrera, Pablo"]
[Black "Ghimpu, Samuel-Timotei"]
[WhiteFideId "3407128"]
[BlackFideId "1238175"]
[WhiteElo "2541"]
[BlackElo "2012"]
[Result "0-1"]
[Round "07"]
[TimeControl "180+1"]
[Date "2021.09.21"]
[WhiteClock "0:00:48"]
[BlackClock "0:01:04"]

1. d4 {[%clk 0:03:00]}  Nf6 {[%clk 0:02:58]} 2. Nf3 {[%clk 0:03:01]}  d5 {[%clk 0:02:57]} 3. Bf4 {[%clk 0:02:59]}  Bg4 {[%clk 0:02:57]} 4. Ne5 {[%clk 0:02:59]}  Bf5 {[%clk 0:02:54]} 5. c4 {[%clk 0:02:59]}  e6 {[%clk 0:02:48]} 6. Qb3 {[%clk 0:02:59]}  Qc8 {[%clk 0:02:46]} 7. Nc3 {[%clk 0:02:56]}  c6 {[%clk 0:02:42]} 8. Rc1 {[%clk 0:02:56]}  Nbd7 {[%clk 0:02:40]} 9. cxd5 {[%clk 0:02:43]}  exd5 {[%clk 0:02:37]} 10. Nb5 {[%clk 0:02:20]}  Nh5 {[%clk 0:01:43]} 11. Nxd7 {[%clk 0:00:48]}  Nxf4 {[%clk 0:01:04]} 0-1


[Site "https://www.chess.com"]

[Event "Titled Tuesday Blitz September 21 2021"]
[White "Sargsyan, Anna M."]
[Black "Bortnyk, Olexandr"]
[WhiteFideId "13308130"]
[BlackFideId "14120828"]
[WhiteElo "2263"]
[BlackElo "2723"]
[Result "0-1"]
[Round "07"]
[TimeControl "180+1"]
[Date "2021.09.21"]
[WhiteClock "0:00:04"]
[BlackClock "0:00:25"]

1. d4 {[%clk 0:02:36]}  Nf6 {[%clk 0:03:00]} 2. c4 {[%clk 0:02:36]}  d6 {[%clk 0:03:00]} 3. Nc3 {[%clk 0:02:37]}  Bf5 {[%clk 0:02:58]} 4. g3 {[%clk 0:02:36]}  c6 {[%clk 0:02:57]} 5. Bg2 {[%clk 0:02:37]}  h6 {[%clk 0:02:58]} 6. e4 {[%clk 0:02:37]}  Bh7 {[%clk 0:02:58]} 7. Nge2 {[%clk 0:02:37]}  Nbd7 {[%clk 0:02:58]} 8. O-O {[%clk 0:02:38]}  e5 {[%clk 0:02:59]} 9. h3 {[%clk 0:02:36]}  Be7 {[%clk 0:02:59]} 10. f4 {[%clk 0:02:36]}  O-O {[%clk 0:02:59]} 11. Be3 {[%clk 0:02:34]}  Re8 {[%clk 0:02:58]} 12. fxe5 {[%clk 0:02:32]}  dxe5 {[%clk 0:02:57]} 13. d5 {[%clk 0:02:32]}  Bc5 {[%clk 0:02:55]} 14. Qd2 {[%clk 0:02:33]}  Qb6 {[%clk 0:02:54]} 15. Bf2 {[%clk 0:02:15]}  Bxf2+ {[%clk 0:02:54]} 16. Rxf2 {[%clk 0:02:15]}  Nc5 {[%clk 0:02:55]} 17. Qc2 {[%clk 0:01:48]}  cxd5 {[%clk 0:02:38]} 18. Nxd5 {[%clk 0:01:46]}  Nxd5 {[%clk 0:02:37]} 19. cxd5 {[%clk 0:01:47]}  Rac8 {[%clk 0:02:37]} 20. Nc3 {[%clk 0:01:47]}  Qb4 {[%clk 0:02:06]} 21. Raf1 {[%clk 0:01:32]}  f6 {[%clk 0:02:00]} 22. Kh2 {[%clk 0:01:19]}  Qd4 {[%clk 0:01:38]} 23. Qe2 {[%clk 0:01:02]}  a6 {[%clk 0:00:52]} 24. Rd1 {[%clk 0:00:04]}  Qb4 {[%clk 0:00:25]} 0-1


[Site "https://www.chess.com"]

[Event "Titled Tuesday Blitz September 21 2021"]
[White "Siva Mahadevan"]
[Black "Wagner, Dennis"]
[WhiteFideId "25043153"]
[BlackFideId "24650684"]
[WhiteElo "2203"]
[BlackElo "2355"]
[Result "0-1"]
[Round "07"]
[TimeControl "180+1"]
[Date "2021.09.21"]
[WhiteClock "0:01:44"]
[BlackClock "0:01:25"]

1. e4 {[%clk 0:03:00]}  e5 {[%clk 0:02:59]} 2. Nf3 {[%clk 0:03:00]}  Nc6 {[%clk 0:03:00]} 3. Bb5 {[%clk 0:03:01]}  a6 {[%clk 0:03:00]} 4. Ba4 {[%clk 0:03:01]}  Nf6 {[%clk 0:02:59]} 5. O-O {[%clk 0:03:01]}  b5 {[%clk 0:02:58]} 6. Bb3 {[%clk 0:03:00]}  Bc5 {[%clk 0:02:59]} 7. a4 {[%clk 0:02:58]}  Rb8 {[%clk 0:02:59]} 8. c3 {[%clk 0:02:58]}  d6 {[%clk 0:02:59]} 9. d4 {[%clk 0:02:59]}  Bb6 {[%clk 0:02:59]} 10. h3 {[%clk 0:02:59]}  Bb7 {[%clk 0:02:52]} 11. Be3 {[%clk 0:02:54]}  Nxe4 {[%clk 0:02:21]} 12. d5 {[%clk 0:02:23]}  Ne7 {[%clk 0:02:16]} 13. Bxb6 {[%clk 0:02:22]}  cxb6 {[%clk 0:02:17]} 14. axb5 {[%clk 0:02:22]}  axb5 {[%clk 0:02:18]} 15. Qd3 {[%clk 0:02:20]}  Nc5 {[%clk 0:02:12]} 16. Qxb5+ {[%clk 0:02:20]}  Qd7 {[%clk 0:02:12]} 17. Bc4 {[%clk 0:02:12]}  Bxd5 {[%clk 0:02:02]} 18. Qxd7+ {[%clk 0:02:00]}  Kxd7 {[%clk 0:01:58]} 19. Bxd5 {[%clk 0:02:00]}  Nxd5 {[%clk 0:01:58]} 20. Rd1 {[%clk 0:02:01]}  Kc6 {[%clk 0:01:25]} 21. b4 {[%clk 0:01:44]}  Ne4 {[%clk 0:01:25]} 0-1


[Site "https://www.chess.com"]

[Event "Titled Tuesday Blitz September 21 2021"]
[White "Sliwicki, Damian"]
[Black "Ozates, Tuna"]
[WhiteFideId "1127128"]
[BlackFideId "6354521"]
[WhiteElo "2151"]
[BlackElo "1872"]
[Result "1-0"]
[Round "07"]
[TimeControl "180+1"]
[Date "2021.09.21"]
[WhiteClock "0:00:56"]
[BlackClock "0:02:25"]

1. e4 {[%clk 0:02:59]}  d6 {[%clk 0:02:55]} 2. d4 {[%clk 0:02:58]}  Nf6 {[%clk 0:02:56]} 3. Nc3 {[%clk 0:02:58]}  e5 {[%clk 0:02:56]} 4. Nf3 {[%clk 0:02:57]}  Nbd7 {[%clk 0:02:56]} 5. Bc4 {[%clk 0:02:49]}  Be7 {[%clk 0:02:56]} 6. g4 {[%clk 0:02:46]}  c6 {[%clk 0:02:53]} 7. g5 {[%clk 0:02:46]}  Nxe4 {[%clk 0:02:53]} 8. Nxe4 {[%clk 0:02:14]}  d5 {[%clk 0:02:52]} 9. Bd3 {[%clk 0:02:14]}  dxe4 {[%clk 0:02:50]} 10. Bxe4 {[%clk 0:02:15]}  O-O {[%clk 0:02:44]} 11. dxe5 {[%clk 0:02:10]}  Nxe5 {[%clk 0:02:42]} 12. Nxe5 {[%clk 0:01:55]}  Qa5+ {[%clk 0:02:40]} 13. Bd2 {[%clk 0:01:43]}  Qxe5 {[%clk 0:02:41]} 14. Qe2 {[%clk 0:01:44]}  Qxb2 {[%clk 0:02:35]} 15. O-O {[%clk 0:01:33]}  Be6 {[%clk 0:02:25]} 16. Rab1 {[%clk 0:00:56]} 1-0


[Site "https://www.chess.com"]

[Event "Titled Tuesday Blitz September 21 2021"]
[White "Stoyanov, Tsvetan"]
[Black "Buscar, Michael"]
[WhiteFideId "2917173"]
[BlackFideId "2603616"]
[WhiteElo "2191"]
[BlackElo "2010"]
[Result "1-0"]
[Round "07"]
[TimeControl "180+1"]
[Date "2021.09.21"]
[WhiteClock "0:01:35"]
[BlackClock "0:00:24"]

1. Nf3 {[%clk 0:03:00]}  Nf6 {[%clk 0:02:53]} 2. g3 {[%clk 0:03:00]}  d5 {[%clk 0:02:52]} 3. Bg2 {[%clk 0:03:01]}  e6 {[%clk 0:02:50]} 4. O-O {[%clk 0:03:01]}  Be7 {[%clk 0:02:48]} 5. d4 {[%clk 0:03:01]}  O-O {[%clk 0:02:42]} 6. c4 {[%clk 0:03:00]}  c6 {[%clk 0:02:40]} 7. Nc3 {[%clk 0:03:00]}  Nbd7 {[%clk 0:02:32]} 8. Qc2 {[%clk 0:02:59]}  Re8 {[%clk 0:02:29]} 9. e4 {[%clk 0:02:58]}  dxe4 {[%clk 0:02:27]} 10. Nxe4 {[%clk 0:02:59]}  Nxe4 {[%clk 0:02:24]} 11. Qxe4 {[%clk 0:03:00]}  Nf8 {[%clk 0:02:18]} 12. b3 {[%clk 0:02:59]}  Bf6 {[%clk 0:02:17]} 13. Bb2 {[%clk 0:02:59]}  Qa5 {[%clk 0:02:09]} 14. a3 {[%clk 0:02:58]}  Bd7 {[%clk 0:02:03]} 15. Rad1 {[%clk 0:02:57]}  Rad8 {[%clk 0:02:02]} 16. h4 {[%clk 0:02:53]}  c5 {[%clk 0:01:43]} 17. Ne5 {[%clk 0:02:46]}  cxd4 {[%clk 0:01:35]} 18. Ng4 {[%clk 0:02:45]}  Be7 {[%clk 0:01:17]} 19. Qxd4 {[%clk 0:02:42]}  f6 {[%clk 0:01:09]} 20. b4 {[%clk 0:02:42]}  Qc7 {[%clk 0:00:56]} 21. Qxa7 {[%clk 0:02:36]}  Qxc4 {[%clk 0:00:46]} 22. Ne3 {[%clk 0:02:25]}  Qb3 {[%clk 0:00:24]} 23. Rd2 {[%clk 0:01:35]} 1-0


[Site "https://www.chess.com"]

[Event "Titled Tuesday Blitz September 21 2021"]
[White "Svane, Rasmus"]
[Black "Vogel, Roven"]
[WhiteFideId "4657101"]
[BlackFideId "12908088"]
[WhiteElo "2643"]
[BlackElo "2516"]
[Result "0-1"]
[Round "07"]
[TimeControl "180+1"]
[Date "2021.09.21"]
[WhiteClock "0:01:35"]
[BlackClock "0:00:14"]

1. Nf3 {[%clk 0:03:00]}  d5 {[%clk 0:02:58]} 2. g3 {[%clk 0:03:00]}  g6 {[%clk 0:02:52]} 3. Bg2 {[%clk 0:02:59]}  Bg7 {[%clk 0:02:52]} 4. d4 {[%clk 0:03:00]}  Nf6 {[%clk 0:02:51]} 5. O-O {[%clk 0:03:00]}  O-O {[%clk 0:02:51]} 6. c3 {[%clk 0:03:01]}  Nbd7 {[%clk 0:02:37]} 7. a4 {[%clk 0:03:00]}  Re8 {[%clk 0:02:33]} 8. Bf4 {[%clk 0:02:40]}  Nh5 {[%clk 0:02:32]} 9. Bg5 {[%clk 0:02:40]}  h6 {[%clk 0:02:32]} 10. Be3 {[%clk 0:02:40]}  c6 {[%clk 0:02:30]} 11. a5 {[%clk 0:02:39]}  Nhf6 {[%clk 0:02:27]} 12. Re1 {[%clk 0:02:36]}  e5 {[%clk 0:02:21]} 13. dxe5 {[%clk 0:02:36]}  Ng4 {[%clk 0:02:20]} 14. Bf4 {[%clk 0:02:29]}  Ndxe5 {[%clk 0:02:15]} 15. Nxe5 {[%clk 0:02:29]}  Nxe5 {[%clk 0:02:15]} 16. Nd2 {[%clk 0:02:28]}  Bg4 {[%clk 0:01:25]} 17. Qa4 {[%clk 0:02:25]}  h5 {[%clk 0:01:19]} 18. Bxe5 {[%clk 0:02:10]}  Rxe5 {[%clk 0:01:14]} 19. e3 {[%clk 0:01:58]}  Re8 {[%clk 0:01:03]} 20. Nf3 {[%clk 0:01:35]}  Bf6 {[%clk 0:00:14]} 0-1


[Site "https://www.chess.com"]

[Event "Titled Tuesday Blitz September 21 2021"]
[White "Swapnil, S. Dhopade"]
[Black "Al-Tarboush, Ward"]
[WhiteFideId "5019184"]
[BlackFideId "7601450"]
[WhiteElo "2402"]
[BlackElo "2319"]
[Result "1-0"]
[Round "07"]
[TimeControl "180+1"]
[Date "2021.09.21"]
[WhiteClock "0:01:11"]
[BlackClock "0:01:04"]

1. d4 {[%clk 0:03:00]}  d5 {[%clk 0:02:37]} 2. c4 {[%clk 0:02:59]}  c6 {[%clk 0:02:36]} 3. Nc3 {[%clk 0:02:55]}  Nf6 {[%clk 0:02:36]} 4. e3 {[%clk 0:02:55]}  e6 {[%clk 0:02:36]} 5. Nf3 {[%clk 0:02:55]}  Nbd7 {[%clk 0:02:36]} 6. Qc2 {[%clk 0:02:56]}  Bd6 {[%clk 0:02:35]} 7. Bd3 {[%clk 0:02:56]}  dxc4 {[%clk 0:02:35]} 8. Bxc4 {[%clk 0:02:56]}  b5 {[%clk 0:02:33]} 9. Be2 {[%clk 0:02:56]}  Bb7 {[%clk 0:02:33]} 10. O-O {[%clk 0:02:56]}  O-O {[%clk 0:02:32]} 11. e4 {[%clk 0:02:57]}  e5 {[%clk 0:02:31]} 12. dxe5 {[%clk 0:02:57]}  Nxe5 {[%clk 0:02:32]} 13. Nd4 {[%clk 0:02:49]}  Neg4 {[%clk 0:02:18]} 14. g3 {[%clk 0:02:48]}  Bxg3 {[%clk 0:02:09]} 15. hxg3 {[%clk 0:02:47]}  Qxd4 {[%clk 0:02:09]} 16. Qd1 {[%clk 0:02:47]}  Qxd1 {[%clk 0:02:08]} 17. Rxd1 {[%clk 0:02:42]}  Rad8 {[%clk 0:02:00]} 18. Bf4 {[%clk 0:02:30]}  h5 {[%clk 0:01:42]} 19. f3 {[%clk 0:02:27]}  Nh6 {[%clk 0:01:41]} 20. Kf2 {[%clk 0:02:13]}  Rfe8 {[%clk 0:01:27]} 21. Bc7 {[%clk 0:01:49]}  Rc8 {[%clk 0:01:04]} 22. Bf4 {[%clk 0:01:11]} 1-0


[Site "https://www.chess.com"]

[Event "Titled Tuesday Blitz September 21 2021"]
[White "Taboas Rodriguez, Daniel"]
[Black "Kabanov, Nikolai"]
[WhiteFideId "2208466"]
[BlackFideId "4127820"]
[WhiteElo "2429"]
[BlackElo "2303"]
[Result "1-0"]
[Round "07"]
[TimeControl "180+1"]
[Date "2021.09.21"]
[WhiteClock "0:01:50"]
[BlackClock "0:01:26"]

1. d4 {[%clk 0:02:59]}  Nf6 {[%clk 0:02:59]} 2. Nf3 {[%clk 0:03:00]}  e6 {[%clk 0:02:59]} 3. c4 {[%clk 0:03:01]}  d5 {[%clk 0:02:57]} 4. Bg5 {[%clk 0:03:01]}  c5 {[%clk 0:02:54]} 5. cxd5 {[%clk 0:03:00]}  Qxd5 {[%clk 0:02:47]} 6. Nc3 {[%clk 0:03:00]}  Qd8 {[%clk 0:02:45]} 7. e3 {[%clk 0:02:57]}  Be7 {[%clk 0:02:35]} 8. dxc5 {[%clk 0:02:55]}  O-O {[%clk 0:02:25]} 9. Qxd8 {[%clk 0:02:28]}  Rxd8 {[%clk 0:02:26]} 10. Ne4 {[%clk 0:02:28]}  Nc6 {[%clk 0:01:45]} 11. Bxf6 {[%clk 0:02:24]}  gxf6 {[%clk 0:01:44]} 12. Rc1 {[%clk 0:02:24]}  f5 {[%clk 0:01:40]} 13. Ned2 {[%clk 0:02:24]}  e5 {[%clk 0:01:26]} 14. Nb3 {[%clk 0:01:50]} 1-0


[Site "https://www.chess.com"]

[Event "Titled Tuesday Blitz September 21 2021"]
[White "Tasev, Dejan"]
[Black "Vakhlamov, Igor L."]
[WhiteFideId "936618"]
[BlackFideId "24126748"]
[WhiteElo "2253"]
[BlackElo "2416"]
[Result "1-0"]
[Round "07"]
[TimeControl "180+1"]
[Date "2021.09.21"]
[WhiteClock "0:00:25"]
[BlackClock "0:01:23"]

1. e4 {[%clk 0:02:45]}  c5 {[%clk 0:02:58]} 2. Nf3 {[%clk 0:02:44]}  Nc6 {[%clk 0:02:58]} 3. Nc3 {[%clk 0:02:43]}  g6 {[%clk 0:02:58]} 4. Bc4 {[%clk 0:02:42]}  Bg7 {[%clk 0:02:58]} 5. d3 {[%clk 0:02:42]}  d6 {[%clk 0:02:56]} 6. h3 {[%clk 0:02:40]}  a6 {[%clk 0:02:55]} 7. Bb3 {[%clk 0:02:40]}  Nf6 {[%clk 0:02:52]} 8. Be3 {[%clk 0:02:40]}  Na5 {[%clk 0:02:48]} 9. Qd2 {[%clk 0:02:37]}  Nxb3 {[%clk 0:02:45]} 10. axb3 {[%clk 0:02:37]}  h6 {[%clk 0:02:46]} 11. O-O {[%clk 0:02:24]}  g5 {[%clk 0:02:44]} 12. Nh2 {[%clk 0:02:13]}  e5 {[%clk 0:02:32]} 13. Ne2 {[%clk 0:01:54]}  Nh5 {[%clk 0:02:24]} 14. Ng3 {[%clk 0:01:52]}  Nf4 {[%clk 0:02:22]} 15. b4 {[%clk 0:01:46]}  cxb4 {[%clk 0:02:19]} 16. Qxb4 {[%clk 0:01:45]}  O-O {[%clk 0:02:20]} 17. Ng4 {[%clk 0:01:34]}  h5 {[%clk 0:02:00]} 18. Bb6 {[%clk 0:01:28]}  Qd7 {[%clk 0:01:23]} 19. Ne3 {[%clk 0:00:25]} 1-0


[Site "https://www.chess.com"]

[Event "Titled Tuesday Blitz September 21 2021"]
[White "Tisaj, Domen"]
[Black "Pajeken, Jakob Leon"]
[WhiteFideId "14628708"]
[BlackFideId "12942839"]
[WhiteElo "2272"]
[BlackElo "2351"]
[Result "1/2-1/2"]
[Round "07"]
[TimeControl "180+1"]
[Date "2021.09.21"]
[WhiteClock "0:01:38"]
[BlackClock "0:01:38"]

1. d4 {[%clk 0:03:00]}  d5 {[%clk 0:02:58]} 2. Nf3 {[%clk 0:03:01]}  Nf6 {[%clk 0:02:58]} 3. e3 {[%clk 0:03:02]}  c5 {[%clk 0:02:57]} 4. b3 {[%clk 0:03:01]}  e6 {[%clk 0:02:53]} 5. Bb2 {[%clk 0:03:01]}  Nc6 {[%clk 0:02:50]} 6. Nbd2 {[%clk 0:03:00]}  Bd6 {[%clk 0:02:49]} 7. dxc5 {[%clk 0:02:59]}  Bxc5 {[%clk 0:02:48]} 8. a3 {[%clk 0:02:59]}  a5 {[%clk 0:02:44]} 9. Bd3 {[%clk 0:02:59]}  Qe7 {[%clk 0:02:42]} 10. O-O {[%clk 0:02:54]}  O-O {[%clk 0:02:40]} 11. e4 {[%clk 0:02:53]}  dxe4 {[%clk 0:02:38]} 12. Nxe4 {[%clk 0:02:52]}  Nxe4 {[%clk 0:02:38]} 13. Bxe4 {[%clk 0:02:53]}  Bd7 {[%clk 0:02:30]} 14. Qe2 {[%clk 0:02:42]}  Rfd8 {[%clk 0:02:25]} 15. Rfd1 {[%clk 0:02:40]}  f6 {[%clk 0:02:25]} 16. h3 {[%clk 0:02:11]}  Be8 {[%clk 0:02:17]} 17. c3 {[%clk 0:01:48]}  Rxd1+ {[%clk 0:01:57]} 18. Qxd1 {[%clk 0:01:46]}  Rd8 {[%clk 0:01:46]} 19. Qc2 {[%clk 0:01:38]}  f5 {[%clk 0:01:38]} 1/2-1/2


[Site "https://www.chess.com"]

[Event "Titled Tuesday Blitz September 21 2021"]
[White "Tsvetkov, Andrey"]
[Black "Rakhmanov, Aleksandr"]
[WhiteFideId "34139360"]
[BlackFideId "4173708"]
[WhiteElo "2280"]
[BlackElo "2554"]
[Result "1/2-1/2"]
[Round "07"]
[TimeControl "180+1"]
[Date "2021.09.21"]
[WhiteClock "0:02:13"]
[BlackClock "0:01:36"]

1. d4 {[%clk 0:03:00]}  d5 {[%clk 0:02:58]} 2. c4 {[%clk 0:03:00]}  e6 {[%clk 0:02:57]} 3. Nc3 {[%clk 0:03:00]}  Nf6 {[%clk 0:02:58]} 4. cxd5 {[%clk 0:02:59]}  exd5 {[%clk 0:02:57]} 5. Bg5 {[%clk 0:02:59]}  c6 {[%clk 0:02:58]} 6. e3 {[%clk 0:02:59]}  h6 {[%clk 0:02:58]} 7. Bh4 {[%clk 0:02:59]}  Be7 {[%clk 0:02:59]} 8. Bd3 {[%clk 0:02:59]}  Nbd7 {[%clk 0:02:57]} 9. Qc2 {[%clk 0:02:59]}  Nf8 {[%clk 0:02:57]} 10. Nge2 {[%clk 0:02:59]}  Ne6 {[%clk 0:02:58]} 11. O-O {[%clk 0:02:56]}  O-O {[%clk 0:02:58]} 12. Rad1 {[%clk 0:02:56]}  a5 {[%clk 0:02:55]} 13. f3 {[%clk 0:02:55]}  b5 {[%clk 0:02:36]} 14. Kh1 {[%clk 0:02:53]}  b4 {[%clk 0:02:11]} 15. Na4 {[%clk 0:02:53]}  Bb7 {[%clk 0:02:04]} 16. Bf2 {[%clk 0:02:49]}  Rc8 {[%clk 0:01:58]} 17. Bf5 {[%clk 0:02:34]}  Nd7 {[%clk 0:01:50]} 18. Bxe6 {[%clk 0:02:12]}  fxe6 {[%clk 0:01:39]} 19. Nf4 {[%clk 0:02:13]}  Rf6 {[%clk 0:01:36]} 1/2-1/2


[Site "https://www.chess.com"]

[Event "Titled Tuesday Blitz September 21 2021"]
[White "Visakh N R"]
[Black "Rojas Alarcon, Julian Antonio"]
[WhiteFideId "25012223"]
[BlackFideId "5107407"]
[WhiteElo "2454"]
[BlackElo "2333"]
[Result "0-1"]
[Round "07"]
[TimeControl "180+1"]
[Date "2021.09.21"]
[WhiteClock "0:01:46"]
[BlackClock "0:01:12"]

1. d4 {[%clk 0:03:00]}  Nf6 {[%clk 0:02:59]} 2. c4 {[%clk 0:03:00]}  e6 {[%clk 0:02:59]} 3. Nf3 {[%clk 0:03:00]}  b6 {[%clk 0:02:58]} 4. g3 {[%clk 0:03:00]}  Ba6 {[%clk 0:02:58]} 5. b3 {[%clk 0:03:00]}  Bb4+ {[%clk 0:02:58]} 6. Bd2 {[%clk 0:03:00]}  Be7 {[%clk 0:02:59]} 7. Bg2 {[%clk 0:03:01]}  c6 {[%clk 0:02:59]} 8. Bc3 {[%clk 0:03:01]}  d5 {[%clk 0:03:00]} 9. Nbd2 {[%clk 0:03:01]}  Nbd7 {[%clk 0:02:59]} 10. O-O {[%clk 0:03:01]}  O-O {[%clk 0:02:59]} 11. Re1 {[%clk 0:03:01]}  c5 {[%clk 0:02:52]} 12. e4 {[%clk 0:03:00]}  dxe4 {[%clk 0:02:45]} 13. Nxe4 {[%clk 0:03:01]}  Nxe4 {[%clk 0:02:46]} 14. Rxe4 {[%clk 0:03:01]}  Bf6 {[%clk 0:02:45]} 15. Qd2 {[%clk 0:02:57]}  Bb7 {[%clk 0:02:41]} 16. Re2 {[%clk 0:02:55]}  cxd4 {[%clk 0:02:35]} 17. Nxd4 {[%clk 0:02:52]}  Bxg2 {[%clk 0:02:36]} 18. Kxg2 {[%clk 0:02:53]}  Nc5 {[%clk 0:02:32]} 19. Qe3 {[%clk 0:02:53]}  Qc7 {[%clk 0:02:30]} 20. Qf3 {[%clk 0:02:52]}  a6 {[%clk 0:02:27]} 21. Rd1 {[%clk 0:02:50]}  Rac8 {[%clk 0:02:18]} 22. h4 {[%clk 0:02:47]}  h6 {[%clk 0:02:16]} 23. Red2 {[%clk 0:02:47]}  Rfd8 {[%clk 0:02:14]} 24. Ne2 {[%clk 0:02:35]}  Rxd2 {[%clk 0:02:12]} 25. Rxd2 {[%clk 0:02:34]}  Bxc3 {[%clk 0:02:11]} 26. Nxc3 {[%clk 0:02:35]}  Rd8 {[%clk 0:02:10]} 27. Rxd8+ {[%clk 0:02:35]}  Qxd8 {[%clk 0:02:11]} 28. b4 {[%clk 0:02:32]}  Nd7 {[%clk 0:02:03]} 29. Qb7 {[%clk 0:02:29]}  a5 {[%clk 0:01:58]} 30. a3 {[%clk 0:02:06]}  axb4 {[%clk 0:01:50]} 31. axb4 {[%clk 0:02:01]}  Ne5 {[%clk 0:01:36]} 32. c5 {[%clk 0:01:46]}  bxc5 {[%clk 0:01:12]} 0-1


[Site "https://www.chess.com"]